bitfinex/quotes_BTCUSD_20250825
["timestamp","ask_amount","ask_price","bid_price","bid_amount"]
[1756104950860,0.64856245,112090.0,112060.0,0.38446377]
[1756104951066,0.026809,112080.0,112070.0,0.1179627]
[1756104951288,0.026809,112080.0,112070.0,0.1199727]
[1756104951932,0.04513192,112090.0,112070.0,0.1199727]
[1756104952145,0.04513192,112090.0,112080.0,0.166]
[1756104952370,0.0451801,112090.0,112080.0,0.25489475]
[1756104952607,0.0719871,112090.0,112080.0,0.25489475]
[1756104953275,0.0719871,112090.0,112080.0,0.25689475]
[1756104953503,0.02870304,112090.0,112080.0,0.25689475]
[1756104953742,0.07363496,112090.0,112080.0,0.25689475]
[1756104954459,0.02705518,112090.0,112080.0,0.25689475]
[1756104954692,0.02705518,112090.0,112080.0,0.26289475]
[1756104955165,0.02705518,112090.0,112080.0,0.10001475]
[1756104955434,0.02705518,112090.0,112080.0,0.26285475]
[1756104955925,0.02705518,112090.0,112080.0,0.26281475]
[1756104956160,0.0719871,112090.0,112080.0,0.26281475]
[1756104956388,0.02705518,112090.0,112080.0,0.26281475]
[1756104956601,0.0719871,112090.0,112080.0,0.26281475]
[1756104956819,0.0719871,112090.0,112080.0,0.25681475]
[1756104957023,0.0719871,112090.0,112080.0,0.26481475]
[1756104957234,0.02705518,112090.0,112080.0,0.26481475]
[1756104958108,0.02705518,112090.0,112080.0,0.26281475]
[1756104958324,0.02705518,112090.0,112080.0,0.26681475]
[1756104958535,0.02705518,112090.0,112080.0,0.26677475]
[1756104960473,0.02705518,112090.0,112080.0,0.26673475]
[1756104962211,0.02705518,112090.0,112080.0,0.28418377]
[1756104962647,0.02705518,112090.0,112080.0,0.66958622]
[1756104962864,0.00024818,112090.0,112080.0,0.66958622]
[1756104963536,0.00024818,112090.0,112080.0,0.66954622]
[1756104964028,0.00024818,112090.0,112080.0,0.67074639]
[1756104964263,0.00024818,112090.0,112080.0,0.67974639]
[1756104964489,0.00024818,112090.0,112080.0,0.67574639]
[1756104964958,0.00024818,112090.0,112080.0,0.68074639]
[1756104965720,0.00024818,112090.0,112080.0,1.94147284]
[1756104965939,0.00024818,112090.0,112080.0,1.02074639]
[1756104966150,0.00024818,112090.0,112080.0,1.19919035]
[1756104966363,0.00024818,112090.0,112080.0,0.8137879]
[1756104966580,0.00024818,112090.0,112080.0,1.64624088]
[1756104967446,0.00024818,112090.0,112080.0,1.63724088]
[1756104967652,0.00024818,112090.0,112080.0,2.18256488]
[1756104967853,0.00024818,112090.0,112080.0,2.17756488]
[1756104968082,2.622e-05,112090.0,112080.0,2.18713788]
[1756104968347,2.622e-05,112090.0,112080.0,2.11257788]
[1756104968571,2.622e-05,112090.0,112080.0,2.27513788]
[1756104968752,2.622e-05,112090.0,112080.0,2.11257788]
[1756104968977,2.622e-05,112090.0,112080.0,2.27313788]
[1756104969390,0.0002,112100.0,112090.0,1.17634759]
[1756104969596,0.0002,112100.0,112090.0,1.43333687]
[1756104969799,0.0002,112100.0,112090.0,1.53052687]
[1756104970005,0.0002,112110.0,112100.0,0.59092923]
[1756104970219,0.0002,112130.0,112120.0,2.0970263]
[1756104970429,0.00024817,112130.0,112120.0,1.34917143]
[1756104970614,0.00024817,112130.0,112120.0,2.65837033]
[1756104970859,0.00024817,112130.0,112120.0,2.97979033]
[1756104971473,0.00024817,112130.0,112120.0,2.97946747]
[1756104971699,0.00024817,112130.0,112120.0,2.97958747]
[1756104971911,0.0002,112140.0,112130.0,0.63513497]
[1756104972135,0.00068159,112140.0,112130.0,0.90798409]
[1756104972342,0.00068159,112140.0,112130.0,1.08266409]
[1756104972761,0.00068159,112140.0,112130.0,1.24794409]
[1756104973451,0.0002,112150.0,112140.0,0.21744902]
[1756104973641,0.0002,112150.0,112140.0,0.54582113]
[1756104973850,0.0002,112150.0,112140.0,0.49579305]
[1756104974314,0.00024812,112150.0,112140.0,0.75071898]
[1756104974530,0.00024812,112150.0,112140.0,0.71606113]
[1756104975390,0.00024812,112150.0,112140.0,1.00096305]
[1756104975621,0.00024812,112150.0,112140.0,0.83584305]
[1756104975839,0.00024812,112150.0,112140.0,1.00096305]
[1756104976056,0.00024812,112150.0,112140.0,1.01196305]
[1756104976493,0.00024812,112150.0,112140.0,1.01996305]
[1756104977180,0.00024812,112150.0,112140.0,1.01984305]
[1756104977401,0.00024812,112150.0,112140.0,0.85484305]
[1756104977853,0.00024812,112150.0,112140.0,0.4483689]
[1756104978071,0.00024812,112150.0,112140.0,0.4485689]
[1756104978338,0.02703712,112150.0,112140.0,0.46601792]
[1756104978762,0.02703712,112150.0,112140.0,0.44701792]
[1756104979198,0.02703712,112150.0,112140.0,0.46201792]
[1756104979426,0.02703712,112150.0,112140.0,0.46205792]
[1756104979650,0.02703712,112150.0,112140.0,0.45205792]
[1756104979862,0.02703712,112150.0,112140.0,0.46105792]
[1756104980291,0.02703712,112150.0,112140.0,0.47500305]
[1756104980506,0.00024812,112150.0,112140.0,0.47500305]
[1756104981167,0.00024812,112150.0,112140.0,0.8748609]
[1756104981627,0.00024812,112150.0,112140.0,1.3089809]
[1756104981841,0.00024812,112150.0,112140.0,1.2098609]
[1756104982279,0.00024812,112150.0,112140.0,1.2068609]
[1756104982709,0.00024812,112150.0,112140.0,1.2168609]
[1756104983577,0.00024812,112150.0,112140.0,0.81700305]
[1756104983821,0.00024812,112150.0,112140.0,0.85184305]
[1756104984033,0.00024812,112150.0,112140.0,1.02318305]
[1756104984488,0.00024812,112150.0,112140.0,0.85842305]
[1756104984762,0.00024812,112150.0,112140.0,1.02322305]
[1756104984981,0.00024812,112150.0,112140.0,0.46073403]
[1756104985209,0.00024812,112150.0,112140.0,0.47818305]
[1756104985430,0.00024812,112150.0,112140.0,0.46270403]
[1756104985640,0.00024812,112150.0,112140.0,0.45073403]
[1756104985848,0.00024812,112150.0,112140.0,0.46818305]
[1756104986117,0.00024812,112150.0,112140.0,0.47118305]
[1756104986328,0.00024812,112150.0,112140.0,0.47518305]
[1756104986459,0.00024812,112150.0,112140.0,0.46618305]
[1756104986674,0.00024812,112150.0,112140.0,0.47122305]
[1756104986995,0.00024812,112150.0,112140.0,0.47922305]
[1756104988256,0.02703812,112150.0,112140.0,0.47922305]
[1756104990975,0.02703812,112150.0,112140.0,0.47725305]
[1756104991404,0.02703812,112150.0,112140.0,0.47922305]
[1756104991615,0.02703812,112150.0,112140.0,0.47402305]
[1756104991842,0.42689597,112150.0,112140.0,0.30047792]
[1756104992063,0.42689597,112150.0,112140.0,0.28760377]
[1756104992569,0.02703812,112150.0,112140.0,0.28760377]
[1756104992799,0.02703812,112150.0,112140.0,0.28102377]
[1756104993893,0.41145749,112150.0,112140.0,0.28102377]
[1756104994108,0.02703812,112150.0,112140.0,0.28102377]
[1756104994311,0.02868598,112150.0,112140.0,0.28102377]
[1756104994740,0.41310535,112150.0,112140.0,0.28102377]
[1756104994955,0.41145749,112150.0,112140.0,0.09893475]
[1756104995172,0.38466749,112150.0,112140.0,0.11638377]
[1756104995379,0.00024812,112150.0,112140.0,0.11638377]
[1756104995591,0.00189598,112150.0,112140.0,0.11638377]
[1756104995795,0.00189598,112150.0,112140.0,0.28110377]
[1756104996032,0.38631535,112150.0,112140.0,0.28110377]
[1756104996217,0.38466749,112150.0,112140.0,0.28110377]
[1756104996672,0.00024812,112150.0,112140.0,0.28110377]
[1756104996903,0.00189598,112150.0,112140.0,0.28110377]
[1756104998377,0.38631535,112150.0,112140.0,0.28110377]
[1756104998635,0.38466749,112150.0,112140.0,0.28110377]
[1756104999044,0.48466749,112150.0,112140.0,0.09893475]
[1756104999261,0.52959941,112150.0,112140.0,0.26341475]
[1756104999928,0.86959941,112150.0,112140.0,0.01205]
[1756105000130,0.86959941,112150.0,112140.0,0.00805]
[1756105000561,0.86959941,112150.0,112140.0,0.01105]
[1756105001236,0.86959941,112150.0,112140.0,0.00305]
[1756105002282,0.86959941,112150.0,112140.0,0.01005]
[1756105002704,0.86959941,112150.0,112140.0,0.00305]
[1756105002872,0.86959941,112150.0,112140.0,5e-05]
[1756105003093,0.86959941,112150.0,112140.0,0.00505]
[1756105003899,1.03351941,112150.0,112140.0,0.00505]
[1756105004321,1.03351941,112150.0,112140.0,5e-05]
[1756105004542,0.64910004,112150.0,112140.0,5e-05]
[1756105004760,1.03351941,112150.0,112140.0,0.00505]
[1756105004948,1.03343941,112150.0,112140.0,0.00505]
[1756105005199,1.03339941,112150.0,112140.0,0.00505]
[1756105005616,1.03844941,112150.0,112140.0,0.00505]
[1756105006055,0.49023004,112150.0,112140.0,0.00505]
[1756105006307,0.44529812,112150.0,112140.0,0.0101]
[1756105006528,0.15023004,112150.0,112140.0,0.09698475]
[1756105006755,0.1518779,112150.0,112140.0,0.09698475]
[1756105007401,0.1518779,112150.0,112140.0,0.09198475]
[1756105007861,0.1518779,112150.0,112140.0,0.09798475]
[1756105008082,1.12684692,112150.0,112140.0,0.00605]
[1756105008301,1.28064381,112150.0,112140.0,0.00305]
[1756105008522,1.19353416,112150.0,112140.0,0.00305]
[1756105008740,0.80911479,112150.0,112140.0,0.01005]
[1756105008995,1.19353416,112150.0,112140.0,0.01005]
[1756105009213,1.19353416,112150.0,112140.0,0.00305]
[1756105009432,1.19376667,112150.0,112140.0,0.00605]
[1756105009655,1.19376667,112150.0,112140.0,0.00305]
[1756105009878,1.00193408,112150.0,112140.0,0.00305]
[1756105010096,1.00856408,112150.0,112140.0,0.00305]
[1756105010995,1.00856408,112150.0,112140.0,5e-05]
[1756105011685,1.00856408,112150.0,112140.0,0.00305]
[1756105011898,1.00856408,112150.0,112140.0,5e-05]
[1756105012319,1.00856408,112150.0,112140.0,0.00305]
[1756105021454,0.60826817,112150.0,112140.0,0.00305]
[1756105021661,1.00856408,112150.0,112140.0,0.00305]
[1756105022534,0.60826817,112150.0,112140.0,0.00305]
[1756105022760,0.75823933,112150.0,112140.0,0.0081]
[1756105023030,0.92127933,112150.0,112140.0,0.0081]
[1756105024520,0.52098342,112150.0,112140.0,0.0081]
[1756105024725,0.92127933,112150.0,112140.0,0.0081]
[1756105025161,0.85271933,112150.0,112140.0,0.0081]
[1756105025582,0.56996591,112150.0,112140.0,0.0081]
[1756105026206,0.00663,112150.0,112140.0,0.09498475]
[1756105026422,0.00663,112150.0,112140.0,0.09198475]
[1756105026625,0.40029591,112160.0,112140.0,0.10943377]
[1756105026862,0.42708691,112160.0,112150.0,0.08992475]
[1756105027049,0.42708691,112160.0,112150.0,0.09193475]
[1756105027469,0.40029591,112170.0,112150.0,0.09851475]
[1756105027682,0.40034403,112170.0,112150.0,0.09547475]
[1756105027896,0.42713303,112170.0,112160.0,0.00304]
[1756105028111,0.02683712,112170.0,112160.0,0.09193475]
[1756105028312,0.02848498,112170.0,112160.0,0.09193475]
[1756105029152,0.42878089,112170.0,112160.0,0.09193475]
[1756105029378,0.42713303,112170.0,112160.0,0.09193475]
[1756105031153,0.42713303,112170.0,112160.0,0.09693475]
[1756105032624,0.02683712,112170.0,112160.0,0.09693475]
[1756105032845,0.42878089,112170.0,112160.0,0.09693475]
[1756105033062,0.02683712,112170.0,112160.0,0.09693475]
[1756105033291,0.42878089,112170.0,112160.0,0.005]
[1756105033513,0.42713303,112170.0,112160.0,0.005]
[1756105034567,0.02683712,112170.0,112160.0,0.005]
[1756105034784,0.42878089,112170.0,112160.0,0.005]
[1756105035005,0.42713303,112170.0,112160.0,0.005]
[1756105035469,0.42696963,112170.0,112160.0,0.005]
[1756105035686,0.76696963,112170.0,112160.0,0.005]
[1756105035920,1.66992002,112170.0,112160.0,0.005]
[1756105036140,1.84367442,112170.0,112160.0,0.005]
[1756105036567,1.75680477,112170.0,112160.0,0.005]
[1756105037059,0.45372187,112170.0,112160.0,0.005]
[1756105037283,1.75680477,112170.0,112160.0,0.005]
[1756105037504,1.75707061,112170.0,112160.0,0.005]
[1756105037938,0.85395283,112170.0,112160.0,0.005]
[1756105039494,0.94082248,112170.0,112160.0,0.005]
[1756105039935,0.85395283,112170.0,112160.0,0.005]
[1756105040810,0.85395283,112170.0,112140.0,0.00328]
[1756105040950,0.74023096,112150.0,112140.0,0.00328]
[1756105041164,0.74023096,112150.0,112140.0,0.00535]
[1756105041370,0.73131096,112150.0,112140.0,0.00535]
[1756105041600,0.75810796,112150.0,112140.0,0.00535]
[1756105041800,0.75810796,112150.0,112140.0,5e-05]
[1756105042200,0.357877,112150.0,112140.0,0.0023913]
[1756105042396,0.357877,112150.0,112140.0,0.00106593]
[1756105042626,0.357877,112150.0,112140.0,0.00429593]
[1756105043060,0.357877,112150.0,112140.0,0.00636593]
[1756105043423,0.75810796,112150.0,112140.0,0.00429593]
[1756105043637,0.75810796,112150.0,112140.0,0.00106593]
[1756105048414,0.84497761,112150.0,112140.0,0.00106593]
[1756105049117,0.75810796,112150.0,112140.0,0.00106593]
[1756105049800,0.42702796,112150.0,112140.0,0.00106593]
[1756105051305,0.51391271,112150.0,112140.0,0.00106593]
[1756105052010,0.11368175,112150.0,112140.0,0.00106593]
[1756105052240,0.51556057,112150.0,112140.0,0.00106593]
[1756105052464,0.51391271,112150.0,112140.0,0.00106593]
[1756105053369,0.11368175,112150.0,112140.0,0.00429593]
[1756105053596,0.67828057,112150.0,112140.0,0.00106593]
[1756105053871,0.67663271,112150.0,112140.0,0.00106593]
[1756105054074,0.11368175,112150.0,112140.0,0.00106593]
[1756105054299,1.01828057,112150.0,112140.0,0.00111593]
[1756105054538,0.85391271,112150.0,112140.0,0.00111593]
[1756105054755,1.01663271,112150.0,112140.0,0.00111593]
[1756105055423,1.10350236,112150.0,112140.0,0.00111593]
[1756105056279,1.01663271,112150.0,112140.0,0.00111593]
[1756105056495,0.45368175,112150.0,112140.0,0.00111593]
[1756105056704,1.01663271,112150.0,112140.0,0.00111593]
[1756105058039,0.61640175,112150.0,112140.0,0.00111593]
[1756105058250,1.01663271,112150.0,112140.0,0.00111593]
[1756105058895,1.05700654,112150.0,112140.0,0.00111593]
[1756105059566,1.05710653,112150.0,112140.0,0.00111593]
[1756105060264,1.28412824,112150.0,112140.0,0.00111593]
[1756105061126,1.40157726,112150.0,112140.0,0.00111593]
[1756105061337,1.40157726,112150.0,112140.0,5e-05]
[1756105061617,1.40157726,112150.0,112140.0,0.00305]
[1756105061825,1.28708578,112150.0,112140.0,0.00305]
[1756105062040,1.29065978,112150.0,112140.0,5e-05]
[1756105062475,1.29065978,112150.0,112140.0,0.00205]
[1756105063091,0.88528369,112150.0,112140.0,0.00205]
[1756105063301,1.04796369,112150.0,112140.0,0.00205]
[1756105064382,1.22629628,112150.0,112140.0,0.00205]
[1756105064826,1.04796369,112150.0,112140.0,0.00205]
[1756105065059,1.49636369,112150.0,112140.0,0.00205]
[1756105065281,1.76156593,112150.0,112140.0,0.00205]
[1756105068396,1.49636369,112150.0,112140.0,0.00205]
[1756105068819,1.67469628,112150.0,112140.0,0.00205]
[1756105069973,2.59373639,112150.0,112140.0,0.00205]
[1756105071107,2.48793419,112140.0,112130.0,5e-05]
[1756105071384,2.87604859,112140.0,112130.0,5e-05]
[1756105071622,3.03868859,112140.0,112130.0,5e-05]
[1756105072532,3.03868859,112140.0,112130.0,0.00105]
[1756105076708,2.59028859,112140.0,112130.0,0.00105]
[1756105079865,2.59386259,112140.0,112130.0,0.00105]
[1756105080545,2.59386259,112140.0,112130.0,0.00105]
[1756105091328,2.43122259,112140.0,112130.0,0.00105]
[1756105091553,2.59370259,112140.0,112130.0,0.00105]
[1756105091776,2.43122259,112140.0,112130.0,0.00105]
[1756105092005,2.59370259,112140.0,112130.0,0.00105]
[1756105092519,2.59366259,112140.0,112130.0,0.00105]
[1756105094505,2.60761946,112140.0,112130.0,0.00105]
[1756105094732,1.30388278,112140.0,112130.0,0.00105]
[1756105094957,2.60761946,112140.0,112130.0,0.00105]
[1756105095902,2.52074981,112140.0,112130.0,0.0064]
[1756105096344,2.52074981,112140.0,112130.0,0.00425]
[1756105096549,2.52074981,112140.0,112130.0,0.0064]
[1756105099135,2.35830981,112140.0,112130.0,0.0064]
[1756105099348,2.18070981,112140.0,112130.0,0.0064]
[1756105099580,2.16757946,112140.0,112130.0,0.0064]
[1756105099855,2.26757946,112140.0,112130.0,0.0064]
[1756105100283,2.60757946,112140.0,112130.0,0.0064]
[1756105100708,2.67617946,112140.0,112130.0,0.0064]
[1756105101183,2.66222259,112140.0,112130.0,0.0064]
[1756105101650,2.66214259,112140.0,112130.0,0.0064]
[1756105103040,0.92043532,112140.0,112130.0,0.0064]
[1756105103242,1.26043532,112140.0,112130.0,0.0064]
[1756105104074,2.17947543,112140.0,112130.0,0.0064]
[1756105104906,2.35782392,112140.0,112130.0,0.0064]
[1756105105107,2.47527294,112140.0,112130.0,0.0064]
[1756105105316,2.56214259,112140.0,112130.0,0.0064]
[1756105105744,2.56214259,112140.0,112130.0,0.00425]
[1756105106643,2.66214259,112140.0,112130.0,0.00105]
[1756105109440,2.65322259,112140.0,112130.0,0.00105]
[1756105110344,2.65322259,112140.0,112130.0,0.00425]
[1756105110568,2.65322259,112140.0,112130.0,0.00105]
[1756105111018,1.37693093,112140.0,112130.0,0.00105]
[1756105111238,2.68066761,112140.0,112130.0,0.00105]
[1756105112643,2.68066761,112140.0,112130.0,5e-05]
[1756105112801,2.68166761,112140.0,112130.0,5e-05]
[1756105113007,2.68366761,112140.0,112130.0,5e-05]
[1756105114574,2.69762468,112140.0,112130.0,5e-05]
[1756105116975,2.57311113,112140.0,112130.0,5e-05]
[1756105119979,2.57311113,112140.0,112130.0,0.00305]
[1756105120197,2.57311113,112140.0,112130.0,5e-05]
[1756105121276,2.55915406,112140.0,112130.0,5e-05]
[1756105121485,2.28251939,112140.0,112130.0,0.00518]
[1756105121719,2.44459939,112140.0,112130.0,0.00305]
[1756105121960,2.44459939,112140.0,112130.0,0.00518]
[1756105122391,2.28251939,112140.0,112130.0,0.00518]
[1756105122577,1.32551928,112140.0,112130.0,0.00518]
[1756105122826,0.84513079,112140.0,112130.0,0.00518]
[1756105123107,0.3429852,112140.0,112130.0,0.00518]
[1756105123319,0.88972177,112140.0,112130.0,0.00518]
[1756105123538,0.62768177,112140.0,112130.0,0.00518]
[1756105123745,0.78768177,112140.0,112130.0,0.00518]
[1756105123961,1.12868177,112140.0,112130.0,0.00518]
[1756105124179,1.21555142,112140.0,112130.0,0.00518]
[1756105124378,1.39289991,112140.0,112130.0,0.00518]
[1756105124582,1.39189991,112140.0,112130.0,0.00518]
[1756105124803,1.39389991,112140.0,112130.0,0.00518]
[1756105125014,1.12868177,112140.0,112130.0,0.00518]
[1756105125224,1.12668177,112140.0,112130.0,0.00518]
[1756105125406,0.96468177,112140.0,112130.0,0.00518]
[1756105125614,0.7419852,112140.0,112130.0,0.00518]
[1756105125828,1.12668177,112140.0,112130.0,0.00518]
[1756105127312,1.12668177,112140.0,112130.0,0.00618]
[1756105128774,0.7419852,112140.0,112130.0,0.00618]
[1756105128984,1.12668177,112140.0,112130.0,0.00618]
[1756105129160,0.87779702,112140.0,112130.0,0.00618]
[1756105129433,1.03975702,112140.0,112130.0,0.00618]
[1756105132492,0.95875057,112140.0,112130.0,0.00618]
[1756105133330,0.574054,112140.0,112130.0,0.00618]
[1756105133541,0.95875057,112140.0,112130.0,0.00618]
[1756105133966,0.574054,112140.0,112130.0,0.00618]
[1756105134395,0.95875057,112140.0,112130.0,0.00618]
[1756105136672,0.95875057,112140.0,112130.0,0.00105]
[1756105136901,1.04563532,112140.0,112130.0,0.00105]
[1756105137552,1.96467543,112140.0,112130.0,0.00105]
[1756105137981,1.96467543,112140.0,112130.0,0.00618]
[1756105138229,1.04563532,112140.0,112130.0,0.00618]
[1756105138440,1.13250497,112140.0,112130.0,0.00105]
[1756105138656,1.04563532,112140.0,112130.0,0.00105]
[1756105138877,1.49403532,112140.0,112130.0,0.00105]
[1756105140097,1.49403532,112140.0,112130.0,0.00618]
[1756105140299,1.10933875,112140.0,112130.0,0.00618]
[1756105140778,1.49403532,112140.0,112130.0,0.00618]
[1756105142327,0.79687057,112140.0,112130.0,0.00618]
[1756105142547,0.95859057,112140.0,112130.0,0.00618]
[1756105142763,0.573894,112140.0,112130.0,0.00618]
[1756105142976,0.95859057,112140.0,112130.0,0.00618]
[1756105145692,0.573894,112140.0,112130.0,0.00618]
[1756105145868,0.95859057,112140.0,112130.0,0.00618]
[1756105146705,0.573894,112140.0,112130.0,0.00618]
[1756105146911,0.95859057,112140.0,112130.0,0.00618]
[1756105147899,0.95859057,112140.0,112130.0,0.00405]
[1756105148105,0.95859057,112140.0,112130.0,0.00105]
[1756105148337,0.95859057,112140.0,112130.0,0.00618]
[1756105149745,0.573894,112140.0,112130.0,0.00105]
[1756105149959,0.95859057,112140.0,112130.0,0.00105]
[1756105150179,1.34328714,112140.0,112130.0,0.00105]
[1756105150397,1.96451543,112140.0,112130.0,0.00105]
[1756105150820,1.04547532,112140.0,112130.0,0.00105]
[1756105151866,1.04547532,112140.0,112130.0,0.00419]
[1756105152329,1.04547532,112140.0,112130.0,0.00631]
[1756105153138,0.95847057,112140.0,112130.0,0.00631]
[1756105153340,0.79687057,112140.0,112130.0,0.00631]
[1756105153547,0.95847057,112140.0,112130.0,0.00631]
[1756105155217,0.95847057,112140.0,112130.0,0.00419]
[1756105155642,0.95847057,112140.0,112130.0,0.00631]
[1756105155856,0.98847057,112140.0,112130.0,0.00631]
[1756105159409,0.98847057,112140.0,112130.0,0.00419]
[1756105159850,0.603774,112140.0,112130.0,0.00631]
[1756105160053,0.98847057,112140.0,112130.0,0.00631]
[1756105161260,0.98847057,112140.0,112130.0,0.00419]
[1756105162371,0.98847057,112140.0,112130.0,0.00631]
[1756105163252,0.69064365,112140.0,112130.0,0.00105]
[1756105163490,1.07534022,112140.0,112130.0,0.00105]
[1756105163720,2.08126508,112140.0,112130.0,0.00105]
[1756105163955,2.35961357,112140.0,112130.0,0.00105]
[1756105164184,2.34307136,112140.0,112130.0,0.00105]
[1756105164406,2.34664636,112140.0,112130.0,0.00105]
[1756105164899,2.25977671,112140.0,112130.0,0.00105]
[1756105165350,1.3407366,112140.0,112130.0,0.00105]
[1756105165579,2.25977671,112140.0,112130.0,0.00105]
[1756105166268,1.3407366,112140.0,112130.0,0.00105]
[1756105168579,2.25977671,112140.0,112130.0,0.00105]
[1756105169037,1.3407366,112140.0,112130.0,0.00105]
[1756105169257,1.16238811,112140.0,112130.0,0.00105]
[1756105170179,1.21091978,112140.0,112130.0,0.00105]
[1756105170405,1.04931978,112140.0,112130.0,0.00105]
[1756105170623,1.21079978,112140.0,112130.0,0.00105]
[1756105170848,0.72610321,112140.0,112130.0,0.00105]
[1756105171057,1.16226811,112140.0,112130.0,0.00631]
[1756105171538,1.16226811,112140.0,112130.0,0.00419]
[1756105172648,1.16226811,112140.0,112130.0,0.00105]
[1756105173546,1.16222811,112140.0,112130.0,0.00105]
[1756105174240,2.27935273,112140.0,112130.0,0.00105]
[1756105174471,2.27043273,112140.0,112130.0,0.00105]
[1756105174699,2.38788175,112140.0,112130.0,0.00105]
[1756105178132,2.38784175,112140.0,112130.0,0.00105]
[1756105179025,2.22644175,112140.0,112130.0,0.00105]
[1756105179252,2.38784175,112140.0,112130.0,0.00105]
[1756105179691,1.08410507,112140.0,112130.0,0.00105]
[1756105179923,2.38784175,112140.0,112130.0,0.00105]
[1756105180451,2.83624175,112140.0,112130.0,0.00105]
[1756105183541,2.83620175,112140.0,112130.0,0.00105]
[1756105184170,2.49835394,112140.0,112130.0,0.00105]
[1756105184619,2.33699394,112140.0,112130.0,0.00105]
[1756105184828,2.49835394,112140.0,112130.0,0.00617]
[1756105185291,2.51231065,112140.0,112130.0,0.00617]
[1756105185502,2.51231065,112140.0,112130.0,0.00105]
[1756105185712,2.51231065,112140.0,112130.0,0.00402]
[1756105185924,2.51231065,112140.0,112130.0,0.00105]
[1756105186127,2.85231065,112140.0,112130.0,0.00105]
[1756105187202,2.9391803,112140.0,112130.0,0.00105]
[1756105189962,2.69095065,112140.0,112130.0,0.00105]
[1756105190179,2.85227065,112140.0,112130.0,0.00402]
[1756105191084,1.54853397,112140.0,112130.0,0.00402]
[1756105191294,2.83831394,112140.0,112130.0,0.00402]
[1756105191506,2.83831394,112140.0,112130.0,0.00105]
[1756105191953,2.92518359,112140.0,112130.0,0.00105]
[1756105192379,1.62144691,112140.0,112130.0,0.00105]
[1756105192586,2.92518359,112140.0,112130.0,0.00105]
[1756105193288,2.00614348,112140.0,112130.0,0.00105]
[1756105193506,2.83831394,112140.0,112130.0,0.00105]
[1756105193717,1.53457726,112140.0,112130.0,0.00105]
[1756105193930,2.83831394,112140.0,112130.0,0.00105]
[1756105194583,2.85227107,112140.0,112130.0,0.00105]
[1756105195209,2.85227107,112140.0,112130.0,0.00402]
[1756105195392,2.85227107,112140.0,112130.0,0.00617]
[1756105195872,2.93914072,112140.0,112130.0,0.00617]
[1756105196453,2.69095107,112140.0,112130.0,0.00617]
[1756105196628,2.85223107,112140.0,112130.0,0.00617]
[1756105196838,2.85223107,112140.0,112130.0,0.00402]
[1756105197245,2.85223107,112140.0,112130.0,0.00617]
[1756105197445,1.54849439,112140.0,112130.0,0.00617]
[1756105197807,1.54849439,112140.0,112130.0,0.00402]
[1756105198009,2.85223107,112140.0,112130.0,0.00402]
[1756105198646,2.87363508,112140.0,112130.0,0.00402]
[1756105198849,2.87363508,112140.0,112130.0,0.00105]
[1756105200134,2.85219107,112140.0,112130.0,0.00617]
[1756105200382,0.99141688,112140.0,112130.0,0.00617]
[1756105200600,1.18335632,112140.0,112130.0,0.00617]
[1756105201037,0.73495632,112140.0,112130.0,0.00617]
[1756105201256,2.27234492,112140.0,112130.0,0.00105]
[1756105201473,2.47666359,112140.0,112130.0,0.00105]
[1756105201708,2.50447323,112140.0,112130.0,0.00105]
[1756105202446,2.41760358,112140.0,112130.0,0.00105]
[1756105202664,2.38979394,112140.0,112130.0,0.00105]
[1756105203598,0.74650877,112140.0,112130.0,0.00617]
[1756105203823,1.07491632,112140.0,112130.0,0.00617]
[1756105204037,1.27491632,112140.0,112130.0,0.00617]
[1756105204518,1.36178597,112140.0,112130.0,0.00617]
[1756105204727,1.54013446,112140.0,112130.0,0.00617]
[1756105204942,1.55758348,112140.0,112130.0,0.00617]
[1756105205210,2.47662359,112140.0,112130.0,0.00105]
[1756105205427,2.21140545,112140.0,112130.0,0.00617]
[1756105205902,2.38975394,112140.0,112130.0,0.00617]
[1756105206124,2.21140545,112140.0,112130.0,0.00617]
[1756105206339,1.29236534,112140.0,112130.0,0.00617]
[1756105206576,2.38975394,112140.0,112130.0,0.00617]
[1756105207001,2.47662359,112140.0,112130.0,0.00617]
[1756105207915,2.47662359,112140.0,112130.0,0.00402]
[1756105208150,2.47662359,112140.0,112130.0,0.00105]
[1756105209012,2.50443323,112140.0,112130.0,0.00105]
[1756105210081,2.50443323,112140.0,112130.0,5e-05]
[1756105210689,2.5210652,112140.0,112130.0,5e-05]
[1756105210904,2.5220652,112140.0,112130.0,5e-05]
[1756105211773,2.5210652,112140.0,112130.0,5e-05]
[1756105212443,2.5230611,112140.0,112130.0,5e-05]
[1756105212978,2.5240611,112140.0,112130.0,5e-05]
[1756105213654,2.538019,112140.0,112130.0,5e-05]
[1756105214981,2.376859,112140.0,112130.0,5e-05]
[1756105215202,2.537939,112140.0,112130.0,5e-05]
[1756105215653,2.53793314,112140.0,112130.0,5e-05]
[1756105216174,2.34904073,112140.0,112130.0,5e-05]
[1756105216391,2.51012073,112140.0,112130.0,5e-05]
[1756105217303,2.32325108,112140.0,112130.0,0.00522]
[1756105217534,2.22810282,112140.0,112130.0,0.00522]
[1756105217730,2.06659184,112140.0,112130.0,0.00522]
[1756105217986,0.42346667,112140.0,112130.0,0.00522]
[1756105218207,1.29175422,112140.0,112130.0,0.00522]
[1756105218691,1.19175422,112140.0,112130.0,0.00522]
[1756105218908,1.20920324,112140.0,112130.0,0.00522]
[1756105219137,0.96920324,112140.0,112130.0,0.00522]
[1756105219361,1.57442138,112140.0,112130.0,0.00522]
[1756105219588,2.49346149,112140.0,112130.0,0.00522]
[1756105220037,2.154073,112140.0,112130.0,0.00522]
[1756105220275,1.39607289,112140.0,112130.0,0.00522]
[1756105220720,1.29607289,112140.0,112130.0,0.00522]
[1756105220953,1.39607289,112140.0,112130.0,0.00522]
[1756105221237,1.38211499,112140.0,112130.0,0.00522]
[1756105221488,0.69934094,112140.0,112130.0,0.00522]
[1756105221718,1.08925751,112140.0,112130.0,0.00522]
[1756105221951,1.18925751,112140.0,112130.0,0.00522]
[1756105223058,1.08921751,112140.0,112130.0,0.00522]
[1756105223283,1.18921751,112140.0,112130.0,0.00522]
[1756105223538,0.70452094,112140.0,112130.0,0.00522]
[1756105223760,1.08921751,112140.0,112130.0,0.00522]
[1756105224194,1.18921751,112140.0,112130.0,0.00522]
[1756105224681,1.27608716,112140.0,112130.0,0.00522]
[1756105224894,1.18921751,112140.0,112130.0,0.00522]
[1756105225333,1.18912833,112140.0,112130.0,0.00522]
[1756105227341,1.20657735,112140.0,112130.0,0.00522]
[1756105227563,1.38492584,112140.0,112130.0,0.00522]